[Event "Titled Tuesday Blitz November 22 Early 2022"]
[White "Gabrielian, Artur"]
[Black "Kim, Sergey"]
[WhiteFideId "4131002"]
[BlackFideId "13700570"]
[WhiteElo "2432"]
[BlackElo "2617"]
[Result "1-0"]
[Round "05"]
[TimeControl "180+1"]
[Date "2022.11.23"]
[WhiteClock "0:00:28"]
[BlackClock "0:00:09"]

1. e4 {[%clk 0:03:00]}  e5 {[%clk 0:02:59]} 2. Nc3 {[%clk 0:03:00]}  Nf6 {[%clk 0:02:59]} 3. g3 {[%clk 0:03:01]}  g6 {[%clk 0:02:58]} 4. Bg2 {[%clk 0:02:56]}  Bg7 {[%clk 0:02:58]} 5. Nge2 {[%clk 0:02:56]}  O-O {[%clk 0:02:58]} 6. d3 {[%clk 0:02:55]}  c6 {[%clk 0:02:59]} 7. f4 {[%clk 0:02:46]}  d6 {[%clk 0:02:51]} 8. O-O {[%clk 0:02:45]}  a5 {[%clk 0:02:51]} 9. Kh1 {[%clk 0:02:44]}  a4 {[%clk 0:02:48]} 10. a3 {[%clk 0:02:43]}  b5 {[%clk 0:02:47]} 11. h3 {[%clk 0:02:34]}  Nbd7 {[%clk 0:02:34]} 12. Be3 {[%clk 0:02:29]}  Bb7 {[%clk 0:02:29]} 13. Qd2 {[%clk 0:02:29]}  Qa5 {[%clk 0:02:01]} 14. fxe5 {[%clk 0:02:17]}  dxe5 {[%clk 0:01:51]} 15. g4 {[%clk 0:02:17]}  Rfe8 {[%clk 0:01:32]} 16. Ng3 {[%clk 0:02:16]}  Nf8 {[%clk 0:01:32]} 17. Bh6 {[%clk 0:02:12]}  Ne6 {[%clk 0:01:30]} 18. Bxg7 {[%clk 0:02:07]}  Kxg7 {[%clk 0:01:30]} 19. Rf2 {[%clk 0:01:55]}  Nf4 {[%clk 0:01:22]} 20. Raf1 {[%clk 0:01:53]}  Re6 {[%clk 0:01:09]} 21. Rxf4 {[%clk 0:01:41]}  exf4 {[%clk 0:01:09]} 22. Qxf4 {[%clk 0:01:41]}  Rf8 {[%clk 0:01:00]} 23. Nce2 {[%clk 0:01:17]}  Qd8 {[%clk 0:00:58]} 24. Qg5 {[%clk 0:01:13]}  Kh8 {[%clk 0:00:50]} 25. Nf4 {[%clk 0:01:12]}  Ng8 {[%clk 0:00:21]} 26. Nxe6 {[%clk 0:01:11]}  fxe6 {[%clk 0:00:22]} 27. Qxd8 {[%clk 0:01:09]}  Rxd8 {[%clk 0:00:22]} 28. Rf7 {[%clk 0:01:07]}  Ba8 {[%clk 0:00:21]} 29. g5 {[%clk 0:01:07]}  Re8 {[%clk 0:00:20]} 30. e5 {[%clk 0:01:05]}  Ne7 {[%clk 0:00:20]} 31. Ne4 {[%clk 0:01:00]}  Kg8 {[%clk 0:00:20]} 32. Nd6 {[%clk 0:01:00]}  Nd5 {[%clk 0:00:16]} 33. h4 {[%clk 0:00:33]}  Rf8 {[%clk 0:00:15]} 34. Ra7 {[%clk 0:00:30]}  c5 {[%clk 0:00:11]} 35. c4 {[%clk 0:00:30]}  bxc4 {[%clk 0:00:09]} 36. dxc4 {[%clk 0:00:30]}  Nb6 {[%clk 0:00:09]} 37. Bxa8 {[%clk 0:00:30]}  Nxa8 {[%clk 0:00:09]} 38. Rb7 {[%clk 0:00:28]} 1-0


[Site "https://www.chess.com"]

[Event "Titled Tuesday Blitz November 22 Early 2022"]
[White "Gardezi, Arsal"]
[Black "Begunov, Konstantin"]
[WhiteFideId "30949521"]
[BlackFideId "4118510"]
[WhiteElo "1906"]
[BlackElo "2140"]
[Result "0-1"]
[Round "05"]
[TimeControl "180+1"]
[Date "2022.11.23"]
[WhiteClock "0:01:03"]
[BlackClock "0:00:38"]

1. d4 {[%clk 0:02:55]}  d5 {[%clk 0:02:59]} 2. c4 {[%clk 0:02:54]}  c6 {[%clk 0:03:00]} 3. Nc3 {[%clk 0:02:53]}  Nf6 {[%clk 0:03:01]} 4. cxd5 {[%clk 0:02:53]}  cxd5 {[%clk 0:03:02]} 5. Nf3 {[%clk 0:02:53]}  Nc6 {[%clk 0:03:02]} 6. Bf4 {[%clk 0:02:53]}  a6 {[%clk 0:03:03]} 7. e3 {[%clk 0:02:53]}  Bg4 {[%clk 0:03:03]} 8. Be2 {[%clk 0:02:52]}  e6 {[%clk 0:03:03]} 9. O-O {[%clk 0:02:52]}  Bd6 {[%clk 0:03:04]} 10. Ne5 {[%clk 0:02:53]}  Bxe2 {[%clk 0:03:03]} 11. Qxe2 {[%clk 0:02:53]}  Bxe5 {[%clk 0:03:03]} 12. dxe5 {[%clk 0:02:54]}  Nd7 {[%clk 0:03:03]} 13. Qg4 {[%clk 0:02:39]}  g6 {[%clk 0:02:51]} 14. Qg3 {[%clk 0:02:39]}  h6 {[%clk 0:01:59]} 15. h4 {[%clk 0:02:29]}  Qc7 {[%clk 0:01:44]} 16. Rad1 {[%clk 0:02:14]}  O-O-O {[%clk 0:01:44]} 17. a3 {[%clk 0:02:00]}  Rdg8 {[%clk 0:01:32]} 18. e4 {[%clk 0:01:45]}  g5 {[%clk 0:01:31]} 19. hxg5 {[%clk 0:01:44]}  hxg5 {[%clk 0:01:30]} 20. Bxg5 {[%clk 0:01:45]}  d4 {[%clk 0:01:14]} 21. Ne2 {[%clk 0:01:39]}  Ndxe5 {[%clk 0:01:07]} 22. Qf4 {[%clk 0:01:33]}  d3 {[%clk 0:00:57]} 23. Nc1 {[%clk 0:01:33]}  Rh5 {[%clk 0:00:47]} 24. Bf6 {[%clk 0:01:26]}  Rg4 {[%clk 0:00:44]} 25. Qe3 {[%clk 0:01:03]}  Nf3+ {[%clk 0:00:38]} 26. Qxf3 {[%clk 0:01:03]}  Qh2# {[%clk 0:00:38]} 0-1


[Site "https://www.chess.com"]

[Event "Titled Tuesday Blitz November 22 Early 2022"]
[White "Garmash, Aliona"]
[Black "Arbunic Castro, Giovanna"]
[WhiteFideId "34127620"]
[BlackFideId "3400549"]
[WhiteElo "1958"]
[BlackElo "1949"]
[Result "1-0"]
[Round "05"]
[TimeControl "180+1"]
[Date "2022.11.23"]
[WhiteClock "0:00:05"]
[BlackClock "0:00:12"]

1. d4 {[%clk 0:03:00]}  Nf6 {[%clk 0:02:58]} 2. c4 {[%clk 0:03:00]}  g6 {[%clk 0:02:57]} 3. Nc3 {[%clk 0:02:59]}  Bg7 {[%clk 0:02:57]} 4. e4 {[%clk 0:02:58]}  d6 {[%clk 0:02:57]} 5. Nf3 {[%clk 0:02:59]}  O-O {[%clk 0:02:56]} 6. Be2 {[%clk 0:02:59]}  Nbd7 {[%clk 0:02:56]} 7. O-O {[%clk 0:02:44]}  e5 {[%clk 0:02:56]} 8. Be3 {[%clk 0:02:44]}  Re8 {[%clk 0:02:50]} 9. d5 {[%clk 0:02:23]}  Nc5 {[%clk 0:02:47]} 10. Nd2 {[%clk 0:02:21]}  a5 {[%clk 0:02:42]} 11. b3 {[%clk 0:02:19]}  Nfd7 {[%clk 0:02:34]} 12. a3 {[%clk 0:02:17]}  f5 {[%clk 0:02:25]} 13. f3 {[%clk 0:02:16]}  f4 {[%clk 0:02:21]} 14. Bf2 {[%clk 0:02:16]}  Nf6 {[%clk 0:02:17]} 15. b4 {[%clk 0:02:15]}  axb4 {[%clk 0:02:03]} 16. axb4 {[%clk 0:02:14]}  Rxa1 {[%clk 0:02:01]} 17. Qxa1 {[%clk 0:02:13]}  Na6 {[%clk 0:01:55]} 18. Qa3 {[%clk 0:01:55]}  g5 {[%clk 0:01:53]} 19. c5 {[%clk 0:01:54]}  g4 {[%clk 0:01:45]} 20. Rc1 {[%clk 0:01:07]}  Bh6 {[%clk 0:01:42]} 21. Rc2 {[%clk 0:00:54]}  g3 {[%clk 0:01:37]} 22. hxg3 {[%clk 0:00:49]}  fxg3 {[%clk 0:01:36]} 23. Bxg3 {[%clk 0:00:49]}  Nh5 {[%clk 0:01:36]} 24. Bf2 {[%clk 0:00:44]}  Qg5 {[%clk 0:01:28]} 25. Nf1 {[%clk 0:00:17]}  Bh3 {[%clk 0:01:20]} 26. Ne3 {[%clk 0:00:16]}  Qg6 {[%clk 0:01:18]} 27. g4 {[%clk 0:00:15]}  Nf4 {[%clk 0:01:09]} 28. Bf1 {[%clk 0:00:13]}  Rf8 {[%clk 0:01:02]} 29. Nb5 {[%clk 0:00:11]}  Bxf1 {[%clk 0:00:58]} 30. Kxf1 {[%clk 0:00:11]}  Nh3 {[%clk 0:00:58]} 31. Nf5 {[%clk 0:00:10]}  Rxf5 {[%clk 0:00:51]} 32. exf5 {[%clk 0:00:09]}  Qg5 {[%clk 0:00:48]} 33. cxd6 {[%clk 0:00:09]}  c6 {[%clk 0:00:46]} 34. dxc6 {[%clk 0:00:08]}  bxc6 {[%clk 0:00:46]} 35. Nc7 {[%clk 0:00:07]}  Nxf2 {[%clk 0:00:36]} 36. Rxf2 {[%clk 0:00:03]}  e4 {[%clk 0:00:27]} 37. Nxa6 {[%clk 0:00:03]}  e3 {[%clk 0:00:26]} 38. Re2 {[%clk 0:00:02]}  Qf4 {[%clk 0:00:25]} 39. Rxe3 {[%clk 0:00:02]}  Qxe3 {[%clk 0:00:23]} 40. Qxe3 {[%clk 0:00:02]}  Bxe3 {[%clk 0:00:23]} 41. d7 {[%clk 0:00:02]}  Bb6 {[%clk 0:00:21]} 42. Nc5 {[%clk 0:00:02]}  Kf7 {[%clk 0:00:19]} 43. Ne6 {[%clk 0:00:02]}  Ke7 {[%clk 0:00:19]} 44. d8=Q+ {[%clk 0:00:02]}  Bxd8 {[%clk 0:00:19]} 45. Nxd8 {[%clk 0:00:03]}  Kxd8 {[%clk 0:00:19]} 46. g5 {[%clk 0:00:03]}  Ke7 {[%clk 0:00:17]} 47. f6+ {[%clk 0:00:03]}  Kf7 {[%clk 0:00:17]} 48. f4 {[%clk 0:00:04]}  Kg6 {[%clk 0:00:16]} 49. Kf2 {[%clk 0:00:05]}  h6 {[%clk 0:00:16]} 50. Kg3 {[%clk 0:00:05]}  h5 {[%clk 0:00:15]} 51. Kh4 {[%clk 0:00:05]}  Kf5 {[%clk 0:00:14]} 52. f7 {[%clk 0:00:04]}  Kxf4 {[%clk 0:00:13]} 53. f8=Q+ {[%clk 0:00:04]}  Ke4 {[%clk 0:00:13]} 54. Kxh5 {[%clk 0:00:04]}  Kd4 {[%clk 0:00:13]} 55. Qd6+ {[%clk 0:00:04]}  Kc4 {[%clk 0:00:12]} 56. Qc5+ {[%clk 0:00:05]}  Kb3 {[%clk 0:00:12]} 57. Qxc6 {[%clk 0:00:05]} 1-0


[Site "https://www.chess.com"]

[Event "Titled Tuesday Blitz November 22 Early 2022"]
[White "Gheorghiu, Calin"]
[Black "Gonzalez Vega, Alejandro"]
[WhiteFideId "1200305"]
[BlackFideId "3510042"]
[WhiteElo "2225"]
[BlackElo "2282"]
[Result "1-0"]
[Round "05"]
[TimeControl "180+1"]
[Date "2022.11.23"]
[WhiteClock "0:00:08"]
[BlackClock "0:00:02"]

1. e4 {[%clk 0:02:55]}  c5 {[%clk 0:02:59]} 2. Nf3 {[%clk 0:02:54]}  a6 {[%clk 0:02:59]} 3. c4 {[%clk 0:02:49]}  d6 {[%clk 0:02:58]} 4. d4 {[%clk 0:02:48]}  cxd4 {[%clk 0:02:59]} 5. Nxd4 {[%clk 0:02:48]}  Nf6 {[%clk 0:02:58]} 6. Nc3 {[%clk 0:02:49]}  e6 {[%clk 0:02:58]} 7. Be2 {[%clk 0:02:47]}  Qc7 {[%clk 0:02:58]} 8. Be3 {[%clk 0:02:45]}  Nbd7 {[%clk 0:02:59]} 9. O-O {[%clk 0:02:44]}  b6 {[%clk 0:03:00]} 10. f3 {[%clk 0:02:30]}  Bb7 {[%clk 0:03:00]} 11. Qd2 {[%clk 0:02:29]}  Rc8 {[%clk 0:03:00]} 12. Rfc1 {[%clk 0:02:28]}  Qb8 {[%clk 0:03:01]} 13. b4 {[%clk 0:02:19]}  Be7 {[%clk 0:03:01]} 14. a4 {[%clk 0:02:02]}  O-O {[%clk 0:02:57]} 15. Nb3 {[%clk 0:01:56]}  Rfd8 {[%clk 0:02:51]} 16. a5 {[%clk 0:01:54]}  d5 {[%clk 0:02:27]} 17. Nxd5 {[%clk 0:01:36]}  exd5 {[%clk 0:02:24]} 18. exd5 {[%clk 0:01:35]}  Bd6 {[%clk 0:01:48]} 19. axb6 {[%clk 0:00:55]}  Bxh2+ {[%clk 0:01:44]} 20. Kf1 {[%clk 0:00:40]}  Be5 {[%clk 0:01:31]} 21. Ra2 {[%clk 0:00:31]}  Qd6 {[%clk 0:01:15]} 22. Nc5 {[%clk 0:00:24]}  Qb8 {[%clk 0:00:39]} 23. Nxa6 {[%clk 0:00:19]}  Bxa6 {[%clk 0:00:39]} 24. Rxa6 {[%clk 0:00:20]}  Bg3 {[%clk 0:00:31]} 25. c5 {[%clk 0:00:17]}  Nxc5 {[%clk 0:00:20]} 26. Rxc5 {[%clk 0:00:14]}  Nxd5 {[%clk 0:00:17]} 27. Rxd5 {[%clk 0:00:13]}  Rxd5 {[%clk 0:00:17]} 28. Qxd5 {[%clk 0:00:13]}  Rd8 {[%clk 0:00:16]} 29. Qe4 {[%clk 0:00:12]}  Qd6 {[%clk 0:00:15]} 30. Ra1 {[%clk 0:00:11]}  g6 {[%clk 0:00:13]} 31. b7 {[%clk 0:00:11]}  Qb8 {[%clk 0:00:07]} 32. Rd1 {[%clk 0:00:10]}  Rxd1+ {[%clk 0:00:06]} 33. Bxd1 {[%clk 0:00:10]}  Bd6 {[%clk 0:00:06]} 34. Bb3 {[%clk 0:00:09]}  Bc7 {[%clk 0:00:04]} 35. Qd5 {[%clk 0:00:09]}  Qf8 {[%clk 0:00:04]} 36. Ba7 {[%clk 0:00:08]}  Qxb4 {[%clk 0:00:02]} 37. Qxf7+ {[%clk 0:00:08]}  Kh8 {[%clk 0:00:02]} 38. Qg8# {[%clk 0:00:08]} 1-0


[Site "https://www.chess.com"]

[Event "Titled Tuesday Blitz November 22 Early 2022"]
[White "Gines Esteo, Pedro Antonio"]
[Black "Danielian, Vardan"]
[WhiteFideId "32080190"]
[BlackFideId "13301594"]
[WhiteElo "2422"]
[BlackElo "2564"]
[Result "1-0"]
[Round "05"]
[TimeControl "180+1"]
[Date "2022.11.23"]
[WhiteClock "0:00:06"]
[BlackClock "0:00:10"]

1. Nf3 {[%clk 0:02:50]}  Nf6 {[%clk 0:02:58]} 2. b3 {[%clk 0:02:43]}  d6 {[%clk 0:02:52]} 3. d4 {[%clk 0:02:38]}  g6 {[%clk 0:02:52]} 4. Bb2 {[%clk 0:02:38]}  Bg7 {[%clk 0:02:52]} 5. g3 {[%clk 0:02:39]}  O-O {[%clk 0:02:53]} 6. Bg2 {[%clk 0:02:40]}  Nc6 {[%clk 0:02:51]} 7. O-O {[%clk 0:02:39]}  e5 {[%clk 0:02:51]} 8. dxe5 {[%clk 0:02:40]}  Ng4 {[%clk 0:02:51]} 9. c4 {[%clk 0:02:40]}  Re8 {[%clk 0:02:48]} 10. Nc3 {[%clk 0:02:37]}  Ncxe5 {[%clk 0:02:48]} 11. Nxe5 {[%clk 0:02:37]}  Nxe5 {[%clk 0:02:46]} 12. Qd2 {[%clk 0:02:35]}  Nc6 {[%clk 0:02:21]} 13. Rad1 {[%clk 0:02:17]}  Be6 {[%clk 0:02:17]} 14. h3 {[%clk 0:02:17]}  Qd7 {[%clk 0:02:02]} 15. Kh2 {[%clk 0:02:16]}  Rad8 {[%clk 0:02:03]} 16. e4 {[%clk 0:01:59]}  Nd4 {[%clk 0:01:54]} 17. f4 {[%clk 0:01:54]}  c5 {[%clk 0:01:44]} 18. Ne2 {[%clk 0:01:11]}  Nxe2 {[%clk 0:01:34]} 19. Qxe2 {[%clk 0:01:08]}  Bxb2 {[%clk 0:00:56]} 20. Qxb2 {[%clk 0:01:09]}  Qe7 {[%clk 0:00:54]} 21. Rd2 {[%clk 0:00:45]}  Bd7 {[%clk 0:00:53]} 22. Re2 {[%clk 0:00:17]}  Bc6 {[%clk 0:00:51]} 23. Rfe1 {[%clk 0:00:17]}  Qc7 {[%clk 0:00:44]} 24. h4 {[%clk 0:00:15]}  h6 {[%clk 0:00:43]} 25. h5 {[%clk 0:00:13]}  Qe7 {[%clk 0:00:43]} 26. hxg6 {[%clk 0:00:12]}  fxg6 {[%clk 0:00:43]} 27. Qc3 {[%clk 0:00:11]}  Qg7 {[%clk 0:00:42]} 28. e5 {[%clk 0:00:07]}  dxe5 {[%clk 0:00:42]} 29. Bxc6 {[%clk 0:00:07]}  bxc6 {[%clk 0:00:40]} 30. Rxe5 {[%clk 0:00:08]}  Rxe5 {[%clk 0:00:40]} 31. Rxe5 {[%clk 0:00:08]}  Kh7 {[%clk 0:00:36]} 32. Qe3 {[%clk 0:00:09]}  Rd7 {[%clk 0:00:36]} 33. Kh3 {[%clk 0:00:04]}  h5 {[%clk 0:00:34]} 34. Rxc5 {[%clk 0:00:04]}  Qf6 {[%clk 0:00:33]} 35. Re5 {[%clk 0:00:04]}  Rg7 {[%clk 0:00:27]} 36. Qe4 {[%clk 0:00:04]}  Kh6 {[%clk 0:00:26]} 37. b4 {[%clk 0:00:03]}  a6 {[%clk 0:00:25]} 38. a4 {[%clk 0:00:03]}  Rd7 {[%clk 0:00:24]} 39. Re6 {[%clk 0:00:02]}  Qf7 {[%clk 0:00:24]} 40. f5 {[%clk 0:00:03]}  Kg7 {[%clk 0:00:19]} 41. Rxg6+ {[%clk 0:00:04]}  Kf8 {[%clk 0:00:19]} 42. Qe5 {[%clk 0:00:04]}  Qh7 {[%clk 0:00:12]} 43. Qf6+ {[%clk 0:00:04]}  Ke8 {[%clk 0:00:10]} 44. Qe6+ {[%clk 0:00:04]}  Re7 {[%clk 0:00:10]} 45. Rg8+ {[%clk 0:00:04]}  Qxg8 {[%clk 0:00:09]} 46. Qxg8+ {[%clk 0:00:05]}  Kd7 {[%clk 0:00:10]} 47. Qg5 {[%clk 0:00:06]} 1-0


[Site "https://www.chess.com"]

[Event "Titled Tuesday Blitz November 22 Early 2022"]
[White "Hambleton, Aman"]
[Black "Firouzja, Alireza"]
[WhiteFideId "2606577"]
[BlackFideId "12573981"]
[WhiteElo "2538"]
[BlackElo "2903"]
[Result "0-1"]
[Round "05"]
[TimeControl "180+1"]
[Date "2022.11.22"]
[WhiteClock "0:00:01"]
[BlackClock "0:00:56"]

1. d4 {[%clk 0:03:00]}  Nf6 {[%clk 0:02:59]} 2. Bf4 {[%clk 0:02:55]}  g6 {[%clk 0:02:58]} 3. e3 {[%clk 0:02:53]}  Bg7 {[%clk 0:02:59]} 4. h3 {[%clk 0:02:52]}  O-O {[%clk 0:02:59]} 5. Nf3 {[%clk 0:02:52]}  d6 {[%clk 0:03:00]} 6. c3 {[%clk 0:02:47]}  Nc6 {[%clk 0:03:01]} 7. Bh2 {[%clk 0:02:44]}  Nd7 {[%clk 0:03:01]} 8. Be2 {[%clk 0:02:34]}  e5 {[%clk 0:03:01]} 9. a4 {[%clk 0:02:25]}  a5 {[%clk 0:03:00]} 10. Na3 {[%clk 0:02:23]}  f5 {[%clk 0:02:55]} 11. Nb5 {[%clk 0:02:17]}  e4 {[%clk 0:02:55]} 12. Nd2 {[%clk 0:02:15]}  Nf6 {[%clk 0:02:55]} 13. O-O {[%clk 0:02:08]}  Kh8 {[%clk 0:02:53]} 14. Qb3 {[%clk 0:02:03]}  Ne7 {[%clk 0:02:43]} 15. Rae1 {[%clk 0:01:48]}  g5 {[%clk 0:02:39]} 16. f3 {[%clk 0:01:30]}  exf3 {[%clk 0:02:39]} 17. Nxf3 {[%clk 0:01:30]}  h6 {[%clk 0:02:38]} 18. Nd2 {[%clk 0:01:21]}  Ne8 {[%clk 0:02:34]} 19. e4 {[%clk 0:01:09]}  f4 {[%clk 0:02:33]} 20. Bd3 {[%clk 0:00:52]}  c6 {[%clk 0:02:25]} 21. Na3 {[%clk 0:00:53]}  Nf6 {[%clk 0:02:22]} 22. Nac4 {[%clk 0:00:46]}  Be6 {[%clk 0:02:20]} 23. Qxb7 {[%clk 0:00:32]}  Bg8 {[%clk 0:01:32]} 24. e5 {[%clk 0:00:25]}  Rb8 {[%clk 0:01:31]} 25. Qa7 {[%clk 0:00:24]}  Ra8 {[%clk 0:01:30]} 26. Qb6 {[%clk 0:00:22]}  dxe5 {[%clk 0:01:27]} 27. Qxd8 {[%clk 0:00:18]}  Rfxd8 {[%clk 0:01:27]} 28. Nxe5 {[%clk 0:00:18]}  Rab8 {[%clk 0:01:19]} 29. Ndc4 {[%clk 0:00:09]}  c5 {[%clk 0:01:19]} 30. g3 {[%clk 0:00:02]}  fxg3 {[%clk 0:01:11]} 31. Bxg3 {[%clk 0:00:03]}  cxd4 {[%clk 0:01:12]} 32. cxd4 {[%clk 0:00:02]}  Rxd4 {[%clk 0:01:09]} 33. Ng6+ {[%clk 0:00:01]}  Nxg6 {[%clk 0:01:09]} 34. Bxb8 {[%clk 0:00:01]}  Rxd3 {[%clk 0:01:09]} 35. Ne5 {[%clk 0:00:02]}  Nxe5 {[%clk 0:01:06]} 36. Bxe5 {[%clk 0:00:03]}  Nh5 {[%clk 0:01:02]} 37. Bxg7+ {[%clk 0:00:03]}  Kxg7 {[%clk 0:01:03]} 38. Re7+ {[%clk 0:00:03]}  Kg6 {[%clk 0:01:04]} 39. Ra7 {[%clk 0:00:03]}  Nf4 {[%clk 0:01:01]} 40. Ra6+ {[%clk 0:00:02]}  Kh5 {[%clk 0:01:01]} 41. Rxa5 {[%clk 0:00:03]}  Bd5 {[%clk 0:00:58]} 42. Re1 {[%clk 0:00:01]}  Rd2 {[%clk 0:00:57]} 43. b4 {[%clk 0:00:01]}  Rg2+ {[%clk 0:00:56]} 44. Kf1 {[%clk 0:00:01]}  Bc4+ {[%clk 0:00:57]} 45. Re2 {[%clk 0:00:01]}  Rxe2 {[%clk 0:00:56]} 0-1


[Site "https://www.chess.com"]

[Event "Titled Tuesday Blitz November 22 Early 2022"]
[White "Han, Yichen"]
[Black "Tsaruk, Maksim"]
[WhiteFideId "1054430"]
[BlackFideId "13511173"]
[WhiteElo "2323"]
[BlackElo "2300"]
[Result "0-1"]
[Round "05"]
[TimeControl "180+1"]
[Date "2022.11.23"]
[WhiteClock "0:00:40"]
[BlackClock "0:01:28"]

1. e4 {[%clk 0:03:00]}  e5 {[%clk 0:02:59]} 2. Nf3 {[%clk 0:03:00]}  Nc6 {[%clk 0:03:00]} 3. Bb5 {[%clk 0:02:59]}  a6 {[%clk 0:03:00]} 4. Ba4 {[%clk 0:02:59]}  Nf6 {[%clk 0:03:01]} 5. O-O {[%clk 0:02:58]}  Be7 {[%clk 0:03:01]} 6. d3 {[%clk 0:02:58]}  b5 {[%clk 0:02:57]} 7. Bb3 {[%clk 0:02:58]}  O-O {[%clk 0:02:58]} 8. Nc3 {[%clk 0:02:56]}  Bb7 {[%clk 0:02:56]} 9. a4 {[%clk 0:02:49]}  b4 {[%clk 0:02:51]} 10. Nd5 {[%clk 0:02:50]}  Na5 {[%clk 0:02:51]} 11. Nxe7+ {[%clk 0:02:39]}  Qxe7 {[%clk 0:02:52]} 12. Ba2 {[%clk 0:02:39]}  h6 {[%clk 0:02:47]} 13. Bd2 {[%clk 0:02:36]}  c5 {[%clk 0:02:43]} 14. c3 {[%clk 0:02:34]}  Nc6 {[%clk 0:02:36]} 15. Re1 {[%clk 0:02:23]}  Rfd8 {[%clk 0:02:30]} 16. Nh4 {[%clk 0:02:20]}  d5 {[%clk 0:02:28]} 17. Nf5 {[%clk 0:02:19]}  Qd7 {[%clk 0:02:27]} 18. exd5 {[%clk 0:01:55]}  Qxf5 {[%clk 0:02:25]} 19. dxc6 {[%clk 0:01:55]}  Bxc6 {[%clk 0:02:26]} 20. Qe2 {[%clk 0:01:49]}  Qxd3 {[%clk 0:02:22]} 21. Qxd3 {[%clk 0:01:37]}  Rxd3 {[%clk 0:02:23]} 22. Be3 {[%clk 0:01:35]}  bxc3 {[%clk 0:02:09]} 23. bxc3 {[%clk 0:01:33]}  Rxc3 {[%clk 0:02:06]} 24. Rac1 {[%clk 0:01:34]}  Rxc1 {[%clk 0:02:06]} 25. Rxc1 {[%clk 0:01:34]}  Bxa4 {[%clk 0:02:05]} 26. Rxc5 {[%clk 0:01:35]}  Rd8 {[%clk 0:02:00]} 27. h3 {[%clk 0:01:31]}  e4 {[%clk 0:01:44]} 28. Bc4 {[%clk 0:01:31]}  Bb5 {[%clk 0:01:40]} 29. Bxb5 {[%clk 0:01:28]}  axb5 {[%clk 0:01:41]} 30. Rxb5 {[%clk 0:01:29]}  Rd5 {[%clk 0:01:42]} 31. Rb4 {[%clk 0:01:28]}  Kh7 {[%clk 0:01:41]} 32. Bd4 {[%clk 0:01:23]}  Nd7 {[%clk 0:01:41]} 33. Be3 {[%clk 0:01:19]}  f5 {[%clk 0:01:41]} 34. Bf4 {[%clk 0:01:11]}  g5 {[%clk 0:01:41]} 35. Bc7 {[%clk 0:01:08]}  Kg6 {[%clk 0:01:41]} 36. g4 {[%clk 0:01:04]}  h5 {[%clk 0:01:37]} 37. gxf5+ {[%clk 0:01:01]}  Kxf5 {[%clk 0:01:38]} 38. Kg2 {[%clk 0:00:58]}  Nc5 {[%clk 0:01:35]} 39. Rb8 {[%clk 0:00:56]}  Ne6 {[%clk 0:01:35]} 40. Bh2 {[%clk 0:00:54]}  Rd2 {[%clk 0:01:33]} 41. Rb5+ {[%clk 0:00:52]}  Kg6 {[%clk 0:01:32]} 42. Rb6 {[%clk 0:00:52]}  Kf6 {[%clk 0:01:33]} 43. Bg3 {[%clk 0:00:41]}  h4 {[%clk 0:01:29]} 44. Bh2 {[%clk 0:00:41]}  e3 {[%clk 0:01:29]} 45. Bg1 {[%clk 0:00:40]}  e2 {[%clk 0:01:28]} 0-1


[Site "https://www.chess.com"]

[Event "Titled Tuesday Blitz November 22 Early 2022"]
[White "Harsh Suresh"]
[Black "Yurasova, Daria"]
[WhiteFideId "45018464"]
[BlackFideId "34146919"]
[WhiteElo "2227"]
[BlackElo "2097"]
[Result "0-1"]
[Round "05"]
[TimeControl "180+1"]
[Date "2022.11.23"]
[WhiteClock "0:00:03"]
[BlackClock "0:00:17"]

1. b3 {[%clk 0:02:58]}  b6 {[%clk 0:02:58]} 2. Bb2 {[%clk 0:02:55]}  Bb7 {[%clk 0:02:56]} 3. e3 {[%clk 0:02:48]}  e6 {[%clk 0:02:55]} 4. Nf3 {[%clk 0:02:43]}  Nf6 {[%clk 0:02:55]} 5. Be2 {[%clk 0:02:36]}  Be7 {[%clk 0:02:55]} 6. O-O {[%clk 0:02:34]}  O-O {[%clk 0:02:55]} 7. c4 {[%clk 0:02:34]}  c5 {[%clk 0:02:55]} 8. d4 {[%clk 0:01:52]}  cxd4 {[%clk 0:02:54]} 9. Nxd4 {[%clk 0:01:51]}  d6 {[%clk 0:02:54]} 10. Bf3 {[%clk 0:01:49]}  Qc8 {[%clk 0:02:52]} 11. Nc3 {[%clk 0:01:46]}  Nbd7 {[%clk 0:02:52]} 12. Bxb7 {[%clk 0:01:31]}  Qxb7 {[%clk 0:02:52]} 13. Ndb5 {[%clk 0:01:32]}  Qb8 {[%clk 0:02:44]} 14. Ba3 {[%clk 0:01:30]}  Nc5 {[%clk 0:02:44]} 15. Qf3 {[%clk 0:01:27]}  Nfd7 {[%clk 0:02:09]} 16. Rad1 {[%clk 0:01:12]}  a6 {[%clk 0:02:04]} 17. Nd4 {[%clk 0:01:11]}  Ne5 {[%clk 0:02:05]} 18. Qg3 {[%clk 0:01:07]}  Qc7 {[%clk 0:02:03]} 19. Nf3 {[%clk 0:00:55]}  Nxf3+ {[%clk 0:02:02]} 20. Qxf3 {[%clk 0:00:55]}  Rac8 {[%clk 0:02:00]} 21. Rd2 {[%clk 0:00:54]}  Rfd8 {[%clk 0:02:00]} 22. Rfd1 {[%clk 0:00:53]}  h6 {[%clk 0:01:36]} 23. g3 {[%clk 0:00:43]}  Rb8 {[%clk 0:01:33]} 24. Ne4 {[%clk 0:00:25]}  Qb7 {[%clk 0:01:05]} 25. Bxc5 {[%clk 0:00:24]}  bxc5 {[%clk 0:01:05]} 26. Kg2 {[%clk 0:00:24]}  Qc7 {[%clk 0:01:03]} 27. Rd3 {[%clk 0:00:19]}  a5 {[%clk 0:01:02]} 28. R1d2 {[%clk 0:00:19]}  a4 {[%clk 0:01:03]} 29. Qd1 {[%clk 0:00:16]}  axb3 {[%clk 0:01:01]} 30. axb3 {[%clk 0:00:15]}  Rb6 {[%clk 0:01:02]} 31. f3 {[%clk 0:00:14]}  Qb8 {[%clk 0:00:57]} 32. Nxc5 {[%clk 0:00:11]}  Bf8 {[%clk 0:00:26]} 33. Ne4 {[%clk 0:00:11]}  Rc8 {[%clk 0:00:25]} 34. g4 {[%clk 0:00:06]}  Qb7 {[%clk 0:00:24]} 35. h4 {[%clk 0:00:05]}  d5 {[%clk 0:00:24]} 36. cxd5 {[%clk 0:00:05]}  exd5 {[%clk 0:00:25]} 37. Rxd5 {[%clk 0:00:06]}  Rxb3 {[%clk 0:00:25]} 38. Rd7 {[%clk 0:00:06]}  Qb6 {[%clk 0:00:25]} 39. R7d3 {[%clk 0:00:03]}  Rb1 {[%clk 0:00:25]} 40. Qe2 {[%clk 0:00:03]}  Ra1 {[%clk 0:00:25]} 41. Rd1 {[%clk 0:00:03]}  Rca8 {[%clk 0:00:22]} 42. Rxa1 {[%clk 0:00:03]}  Rxa1 {[%clk 0:00:23]} 43. Rd1 {[%clk 0:00:04]}  Ra3 {[%clk 0:00:22]} 44. Rd3 {[%clk 0:00:03]}  Ra1 {[%clk 0:00:22]} 45. Nf2 {[%clk 0:00:04]}  Rb1 {[%clk 0:00:18]} 46. Rd2 {[%clk 0:00:03]}  Rb3 {[%clk 0:00:17]} 47. Rd3 {[%clk 0:00:03]}  Rb2 {[%clk 0:00:17]} 48. h5 {[%clk 0:00:03]}  Rxe2 {[%clk 0:00:17]} 0-1


[Site "https://www.chess.com"]